[Event "ESP-chT Honor Division 2022"]
[Site "Linares"]
[Date "2022.09.20"]
[Round "4.22"]
[White "Forcen Esteban, Daniel"]
[Black "Muzychuk, Anna"]
[Result "1/2-1/2"]
[ECO "A34"]
[WhiteElo "2580"]
[BlackElo "2526"]
[Annotator "TA"]
[PlyCount "98"]
[EventDate "2022.09.17"]
[EventType "team-tourn"]
[EventCountry "ESP"]
[SourceTitle "playchess.com"]
[Source "ChessBase"]
[SourceQuality "1"]
[TimeControl "5400+30"]

{[%evp 12,98,-27,-33,3,2,1,0,0,0,0,0,0,0,0,0,0,0,0,3,8,8,14,8,12,12,12,17,48,64,53,0,0,0,41,18,7,0,51,-109,-62,-121,-68,-89,14,21,14,20,9,10,15,15,217,217,146,85,94,182,217,60,217,217,193,0,0,0,0,0,0,0,0,0,0,0,0,0,0,0,0,0,0,0,0,0,0,0,0,0,0]} 1. c4 {[%emt 0:00:03]} c5 {[%emt 0:00:31]} 2. Nc3 {[%emt 0:00:12]} g6 {[%emt 0:01:59]} 3. d4 {[%emt 0:04:57]} cxd4 {[%emt 0:00:35]} 4. Qxd4 {[%emt 0:00:04]} Nf6 {[%emt 0:00:13]} 5. g3 {[%emt 0:15:47]} Nc6 {[%emt 0:04:27]} 6. Qd2 {[%emt 0:00:52]} Bg7 {[%emt 0:01:44]} 7. Bg2 {[%emt 0:00:05] CPLX 2.0} d6 {[%emt 0:04:06] CPLX 2.0 36 (0-0) (=36). A34: Symmetrical English: 2 Nc3, lines with ...d5.} 8. b3 {[%emt 0:04:37] BESTDEEP} O-O {[%emt 0:13:10][%cal Od6d5] CPLX 2.1 0 (Qd8-a5) (=18)} 9. Bb2 {[%emt 0:00:18] CPLX 2.2} Qa5 {[%emt 0:03:05] BESTDEEP} 10. e4 {[%emt 0:14:29]} Bd7 {[%emt 0:16:32] BESTDEEP} 11. Nge2 {[%emt 0:01:51]} a6 {[%emt 0:00:18] [#] BESTDEEP} 12. Rd1 $146 {[%emt 0:15:04][%cal Ba1d1,Bd1d2,Bd2d6][%mdl 32] BESTDEEP} ({Predecessor:} 12. a3 Qb6 13. Qc2 Na5 14. Nc1 Rac8 15. O-O Qc7 16. N1a2 b5 17. cxb5 axb5 18. Rab1 Qb8 19. Ba1 Be6 20. Qd1 Rfe8 {½-½ (20) Hoeksema,H (2405)-Van der Wiel,J (2565) Leeuwarden 1993}) 12... b5 {[%emt 0:05:16] BESTDEEP} 13. Nd5 {[%emt 0:00:17] CPLX 2.6} Qxd2+ {[%emt 0:16:42] CPLX 3.6} 14. Rxd2 {[%emt 0:00:15] RECAPT} bxc4 {[%emt 0:00:42] BESTDEEP} 15. Nxf6+ {[%emt 0:02:11] EASY} Bxf6 {[%emt 0:05:37] RECAPT} 16. Bxf6 {[%emt 0:00:13] RECAPT} exf6 {[%emt 0:00:02] RECAPT} 17. Rxd6 {[%emt 0:00:07] BESTDEEP} Ne5 {[%emt 0:01:58] CPLX 2.5 4 (Rf8-d8) (=4)} 18. f4 {[%emt 0:16:50] BESTDEEP} (18. Rxf6 Rfd8 19. Rd6 Bg4 $15) 18... Nd3+ {[%emt 0:00:12] CPLX 2.5} 19. Kd2 {[%emt 0:00:04] EASY} Rfd8 {[%emt 0:08:51] CPLX 2.7 31 (Ra8-d8) (=5)} 20. e5 {[%emt 0:10:04] CPLX 2.8} (20. Rxf6 Nf2 21. Rb1 cxb3 22. axb3 Bg4+ 23. Ke3 (23. Ke1 $2 Nd3+ 24. Kf1 Rac8 $19) 23... Nd1+ 24. Rxd1 Rxd1 $19) 20... Rac8 {[%emt 0:06:01] CPLX 3.3} 21. Bb7 {[%emt 0:03:54] CPLX 3.2 53 (b3xc4) (=4)} (21. exf6 Bg4 22. Rd4 (22. Rxd8+ Rxd8 23. Kc3 cxb3 $17) 22... cxb3 23. axb3 Nc5 $11) (21. Rxa6 fxe5 22. Rd6 exf4 $17) (21. Rxf6 $2 Bc6 $1 {[%mdl 512]} 22. Bxc6 Nxe5+ 23. Kc3 Nxc6 24. bxc4 Na5 $19) (21. bxc4 $14 Nc5 22. Nd4 (22. exf6 Bc6 $11)) 21... Rb8 $11 {[%emt 0:00:50] CPLX 3.3} 22. bxc4 {[%emt 0:01:32] EASY} Nc5 {[%emt 0:02:06] CPLX 3.3 41 (f6xe5) (=7)} 23. Bd5 {[%emt 0:03:05] CPLX 3.0 23 (Bb7-f3) (=4)} Rb2+ {[%emt 0:02:27] CPLX 2.8 0 (f6xe5) (=7)} 24. Ke3 {[%emt 0:00:04] EASY} Rxa2 {[%emt 0:01:19] MISS-f6xe5 51 (f6xe5) (=9)} (24... fxe5 $11 25. fxe5 Rxa2) 25. Bc6 $2 {[%emt 0:04:15] RELBLUND 160 (Ne2-c1) (=12)} (25. Nc1 $14 {stays ahead.} Rc2 26. Nd3 Nxd3 27. Kxd3 Bf5+ 28. Ke3) 25... fxe5 {[%emt 0:03:23] CPLX 3.6 47 (Ra2-a3) (=11)} (25... Ra3+ $17 26. Nc3 fxe5 27. fxe5 Rc8 28. Bxd7 Rxc3+ 29. Ke2 Rb8) 26. fxe5 {[%emt 0:00:40] [#] MISSDEEP-Rh1-d1 59 (Rh1-d1) (=15)} (26. Rhd1 $1 $15) 26... Re8 $1 {[%emt 0:00:07] MISSDEEP-Ra2-a3 53 (Ra2-a3) (=13)} 27. Nc3 {[%emt 0:01:19] CPLX 3.8 21 (Ne2-f4) (=15)} (27. Nf4 Ra3+) 27... Ra3 {[%emt 0:01:01] MISSDEEP-Bd7xc6 103 (Bd7xc6) (=17)} (27... Rxe5+ $2 28. Kd4 Re6 29. Kxc5 $18 (29. Rxd7 $2 {leads to mate.} Nb3+ 30. Kd5 Rd2#)) ({Better is} 27... Bxc6 $17 28. Rxc6 Ra5) 28. Bxd7 {[%emt 0:00:05] EASY} Nxd7 {[%emt 0:00:08] RECAPT} (28... Rxc3+ $2 29. Kd4 Nxd7 30. Kxc3 Nxe5 31. c5 $18) 29. Rxd7 {[%emt 0:00:05] RECAPT} Rxc3+ {[%emt 0:00:03][%mdl 4096] Endgame KRR-KRR. EASY} 30. Kd4 {[%emt 0:00:05] EASY} Rc2 {[%emt 0:00:03] Strongly threatening ...Rd2+. EASY} 31. Kd3 {[%emt 0:01:04] Against Rd2+. CPLX 2.0} Ra2 {[%emt 0:00:01] MISSDEEP-Rc2-f2 202 (Rc2-f2) (=23)} (31... Rf2 $1 $11 {and Black is okay.}) 32. Rf1 $1 $18 {[%emt 0:00:53] DEEPSTRONG=>BLUNDERREACT} (32. c5 Rxe5 33. Rc1 Ra3+ 34. Kd4 Rae3 $11) 32... Rxe5 {[%emt 0:00:14] CPLX 2.2} 33. Rfxf7 {[%emt 0:00:03] Rg7+ is the strong threat. CPLX 2.3} Rxh2 {[%emt 0:00:05] EASY} 34. Rg7+ {[%emt 0:00:27] CPLX 2.5} Kf8 {[%emt 0:00:28] MISS-Kg8-h8 35 (Kg8-h8) (=22)} 35. Rdf7+ {[%emt 0:01:09] CPLX 2.5} ({Stronger than} 35. Rxh7 Rxh7 36. Rxh7 Rg5 $11) 35... Ke8 {[%emt 0:00:01] [#] LEGAL} 36. Ra7 $1 {[%emt 0:00:12][%cal Ra7a8] CPLX 2.7} ({And not} 36. Rxh7 Rxh7 37. Rxh7 Rg5 $11) 36... Kf8 {[%emt 0:00:07] [#] EASY} 37. Rxh7 $2 {[%emt 0:00:57] MISSDEEP-Rg7-f7 193 (Rg7-f7) (=16)} (37. Rgf7+ $1 $18 Kg8 38. Rfc7) 37... Rxh7 $11 {[%emt 0:00:06] RECAPT. The position is equal.} 38. Rxh7 $18 {[%emt 0:00:03] KR-KR. RECAPT} Rg5 {[%emt 0:01:22] CPLX 2.0} 39. Kd4 {[%emt 0:00:09] CPLX 2.0 0 (Rh7-a7) (=15)} Ke8 {[%emt 0:00:34] BESTDEEP} 40. c5 {[%emt 0:00:30]} Kd8 {[%emt 0:00:18]} 41. Ra7 {[%emt 0:00:04] MISSDEEP-g3-g4 0 (g3-g4) (=15)} (41. g4 $5) 41... Kc8 {[%emt 0:00:42] BESTDEEP} 42. Kc4 {[%emt 0:00:05] CPLX 2.0 0 (g3-g4) (=15)} Kb8 {[%emt 0:00:53] BESTDEEP} 43. Rxa6 {[%emt 0:00:08] CPLX 2.1 0 (Ra7-g7) (=14)} Rxg3 {[%emt 0:00:11] CPLX 2.0} 44. Kb5 {[%emt 0:01:08] CPLX 2.0 0 (Ra6-a1) (=14)} Kb7 {[%emt 0:01:56] CPLX 2.0} 45. Rf6 {[%emt 0:00:12]} Rb3+ {[%emt 0:00:12] CPLX 2.0} 46. Kc4 {[%emt 0:00:05] CPLX 2.0 0 (Kb5-a4) (=13)} Rb1 {[%emt 0:00:09] BESTDEEP} 47. Rxg6 {[%emt 0:00:04] CPLX 2.0 0 (Kc4-c3) (=13)} Rc1+ {[%emt 0:00:16] CPLX 2.0 0 (Rb1-d1) (=15)} 48. Kd4 {[%emt 0:00:10] CPLX 2.0 0 (Kc4-b3) (=13)} Rd1+ {[%emt 0:00:04] BESTDEEP} 49. Kc4 {[%emt 0:00:10] CPLX 2.0 0 (Kd4-c3) (=12)} Rc1+ {[%emt 0:00:05] Blacks defense is rewarded with a draw.  Weighted Error Value: White=0.18 (very precise) /Black=0.18 (very precise)} 1/2-1/2

[Event "ESP-chT Honor Division 2022"]
[Site "Linares"]
[Date "2022.09.20"]
[Round "4.23"]
[White "Korneev, Oleg"]
[Black "Buksa, Nataliya"]
[Result "1-0"]
[ECO "D02"]
[WhiteElo "2460"]
[BlackElo "2407"]
[Annotator "TA"]
[PlyCount "83"]
[EventDate "2022.09.17"]
[EventType "team-tourn"]
[EventCountry "ESP"]
[SourceTitle "playchess.com"]
[Source "ChessBase"]
[SourceQuality "1"]
[TimeControl "5400+30"]

{[%evp 11,83,1,8,16,18,21,15,28,16,12,2,-5,9,7,0,-45,-19,-24,-17,-8,-14,-19,0,0,0,0,0,0,152,88,75,86,171,170,151,103,103,97,93,93,83,85,84,91,330,339,317,320,336,344,302,310,271,250,606,595,1121,1078,1127,1139,1268,1260,1418,2090,2384,2194,1981,2106,4618,4599,29983,29984,29983,29979]} 1. d4 {[%emt 0:02:06]} d5 {[%emt 0:00:26]} 2. Nf3 {[%emt 0:00:09]} Nf6 {[%emt 0:00:05]} 3. Bf4 {[%emt 0:00:04]} c5 {[%emt 0:00:03]} 4. e3 {[%emt 0:00:04]} Nc6 {[%emt 0:00:03]} 5. c3 {[%emt 0:00:03]} e6 {[%emt 0:10:51]} 6. Nbd2 {[%emt 0:00:38]} cxd4 {[%emt 0:02:44] CPLX 2.2 7 (Bf8-d6) (=7)} 7. exd4 {[%emt 0:00:05] RECAPT. D02: 1 d4 d5 2 Nf3 sidelines, including 2...Nf6 3 g3 and 2...Nf6 3 Bf4.} Nh5 {[%emt 0:00:02] BESTDEEP} 8. Be3 {[%emt 0:00:12] BESTDEEP} Bd6 {[%emt 0:02:47] CPLX 2.1 0 (Nh5-f6) (=2)} 9. Ne5 {[%emt 0:00:07] The position is equal.} g6 {[%emt 0:02:35] BESTDEEP} 10. Nd3 {[%emt 0:00:19] BESTDEEP 10.Nd3 is better than 10.g4.} O-O {[%emt 0:02:55] CPLX 2.2} 11. Be2 {[%emt 0:00:08] CPLX 2.2 7 (g2-g3) (=1)} Ng7 {[%emt 0:00:24] BESTDEEP} 12. Bf4 {[%emt 0:08:01] BESTDEEP} f6 {[%emt 0:06:10] BESTDEEP} 13. Nf3 {[%emt 0:25:18] [#] Against e5. CPLX 2.2 45 (Bf4xd6) (=7)} Qc7 $146 {[%emt 0:11:29] CPLX 2.2 26 (Rf8-e8) (=4)} (13... Re8 $5 {[%cal Re6e5]}) ({Predecessor:} 13... b6 14. Qd2 Ba6 15. O-O Bxd3 16. Bxd3 Qc7 17. Bxd6 Qxd6 18. Rfe1 Rad8 19. Bb5 Ne7 {1-0 (89) Jumabayev,R (2535)-Oparin,G (2604) Riga 2021}) 14. g3 {[%emt 0:11:15] CPLX 2.3 5 (Bf4xd6) (=7)} e5 {[%emt 0:23:25] CPLX 2.3 7 (Rf8-d8) (=4)} 15. dxe5 {[%emt 0:01:15] EASY} fxe5 {[%emt 0:00:24] RECAPT} 16. Ndxe5 {[%emt 0:06:19] RECAPT} Bxe5 {[%emt 0:00:37] RECAPT 19 (Nc6xe5) (=5)} 17. Nxe5 {[%emt 0:03:10] RECAPT} Nxe5 {[%emt 0:11:48] RECAPT} 18. Qxd5+ {[%emt 0:00:31] EASY} Qf7 $1 {[%emt 0:01:33] CPLX 3.0} 19. Qxe5 {[%emt 0:06:15] Threatens to win with Qc7. EASY} Bh3 $2 {[%emt 0:04:14] MISS-Rf8-e8 152 (Rf8-e8) (=15)} (19... Re8 $11 20. Qb5 Bd7) 20. O-O-O {[%emt 0:10:01] CPLX 2.6 64 (Qe5-c7) (=9)} (20. Qc7 $142) 20... Rae8 $16 {[%emt 0:00:44] CPLX 2.7} 21. Qb5 {[%emt 0:02:08] EASY} Rxe2 {[%emt 0:04:57] CPLX 2.8 85 (a7-a6) (=19)} 22. Qxe2 $18 {[%emt 0:00:16] Black must now prevent b3. RECAPT} Qxa2 {[%emt 0:00:02] CPLX 3.0} 23. Qe4 {[%emt 0:08:09] CPLX 3.8 48 (Qe2-b5) (=10)} (23. Qb5 $142) 23... Ne6 $16 {[%emt 0:00:09] CPLX 3.9} 24. Rd5 {[%emt 0:01:28] And now Re1 would win. CPLX 4.1 6 (f2-f3) (=10)} Nxf4 {[%emt 0:06:57] CPLX 4.3 0 (Bh3-f5) (=16)} 25. gxf4 {[%emt 0:00:13] aiming for Rc5. RECAPT} Bf5 {[%emt 0:01:56] [#] CPLX 4.1} 26. Rxf5 {[%emt 0:00:20] EASY} Rxf5 {[%emt 0:00:04][%mdl 4096] Endgame KQR-KQR. RECAPT} 27. Rd1 {[%emt 0:01:10] CPLX 2.8} ({Reject} 27. Qxb7 Rxf4 28. Re1 Qa1+ 29. Kd2 Rxf2+ 30. Re2 Rxe2+ 31. Kxe2 a5 $11) 27... Qf7 $2 {[%emt 0:01:14] This costs Black the game. RELBLUND 239 (Rf5-f7) (=24)} (27... Rf7 $16) 28. Rd8+ $18 {[%emt 0:01:09] EASY} Kg7 {[%emt 0:00:04] EASY} 29. Qd4+ {[%emt 0:01:05] CPLX 3.6} Qf6 {[%emt 0:03:48] BESTDEEP} 30. Rd7+ {[%emt 0:00:09] EASY} Kh6 {[%emt 0:00:02] EASY} 31. Qxf6 {[%emt 0:01:42] MISS-Qd4xa7 0 (Qd4xa7) (=7)} ({Less strong is} 31. Rxb7 Qxd4 32. cxd4 Rxf4 $16) 31... Rxf6 {[%emt 0:00:02] RECAPT} 32. Rxb7 {[%emt 0:01:13] CPLX 2.0} Rxf4 $2 {[%emt 0:00:05] CPLX 2.0 356 (a7-a5) (=33)} (32... a5 33. Rb5 Rxf4 34. Rxa5 Rf3) 33. Rxa7 {[%emt 0:00:09] CPLX 2.0=>BLUNDERREACT} Rxf2 {[%emt 0:00:03] KR-KR. BEVAL 400 (Kh6-g5) (=46)} 34. b4 {[%emt 0:04:03][%cal Bb2b4,Bb4b5,Bb5b6,Bb6b7][%mdl 32] BEVAL} Rf5 {[%emt 0:03:21] BEVAL 49 (Kh6-g5) (=46)} 35. c4 {[%emt 0:01:25] BEVAL} Rf4 {[%emt 0:00:44] BEVAL 129 (Kh6-g5) (=49)} 36. Rc7 {[%emt 0:00:15] BEVAL} Kg5 {[%emt 0:01:04] BEVAL 158 (Rf4-f8) (=52)} 37. b5 {[%emt 0:00:13] BEVAL} Rf1+ {[%emt 0:00:09] BEVAL} 38. Kc2 {[%emt 0:01:25] BEVAL} Rf2+ {[%emt 0:00:29] BEVAL} 39. Kc3 {[%emt 0:00:06] BEVAL} Rxh2 {[%emt 0:00:04] BEVAL 400 (Kg5-g4) (=60)} 40. b6 {[%emt 0:00:07] [#] Threatening mate with Rc5+. BEVAL} Rh1 {[%emt 0:00:01] RELBLUND 400 (Rh2-h3) (=69)} 41. b7 {[%emt 0:00:12] CPLX 2.0} Rb1 {[%emt 0:00:02] RELBLUND 0 (Rh1-h3) (=67)} 42. Rc5+ {[%emt 0:00:15] Weighted Error Value: White=0.10 (very precise) /Black=0.60} 1-0

[Event "ESP-chT Honor Division 2022"]
[Site "Linares"]
[Date "2022.09.20"]
[Round "4.24"]
[White "Llorente Zaro, Alfonso"]
[Black "Tejedor Fuente, Enrique"]
[Result "1/2-1/2"]
[ECO "A13"]
[WhiteElo "2448"]
[BlackElo "2384"]
[Annotator "ChessBase"]
[PlyCount "120"]
[EventDate "2022.09.17"]
[EventType "team-tourn"]
[EventCountry "ESP"]
[SourceTitle "playchess.com"]
[Source "ChessBase"]
[SourceQuality "1"]
[TimeControl "5400+30"]

1. c4 {[%emt 0:00:03]} e6 {[%emt 0:01:54]} 2. Nf3 {[%emt 0:01:11]} Nf6 {[%emt 0:00:28]} 3. d4 {[%emt 0:01:19]} d5 {[%emt 0:01:35]} 4. cxd5 {[%emt 0:00:28]} exd5 {[%emt 0:00:07]} 5. Nc3 {[%emt 0:01:44]} c6 {[%emt 0:04:09]} 6. Bf4 {[%emt 0:00:51]} Nbd7 {[%emt 0:05:31]} 7. Qc2 {[%emt 0:07:26]} Nh5 {[%emt 0:11:02]} 8. Bg5 {[%emt 0:13:35]} Be7 {[%emt 0:02:02]} 9. Bxe7 {[%emt 0:00:07]} Qxe7 {[%emt 0:00:06]} 10. e3 {[%emt 0:00:06]} g6 {[%emt 0:01:31]} 11. Be2 {[%emt 0:08:16]} Ng7 {[%emt 0:01:03]} 12. O-O {[%emt 0:01:20]} O-O {[%emt 0:01:11]} 13. Na4 {[%emt 0:24:24]} f5 {[%emt 0:13:07]} 14. Bd3 {[%emt 0:13:02]} Ne6 {[%emt 0:01:30]} 15. Rfe1 {[%emt 0:01:58]} Rb8 {[%emt 0:01:47]} 16. Rac1 {[%emt 0:01:43]} b5 {[%emt 0:09:57]} 17. Nc3 {[%emt 0:02:39]} Bb7 {[%emt 0:08:45]} 18. Ne2 {[%emt 0:00:17]} Ng7 {[%emt 0:00:45]} 19. a4 {[%emt 0:04:25]} a6 {[%emt 0:00:53]} 20. h4 {[%emt 0:01:37]} Rf6 {[%emt 0:06:21]} 21. Nf4 {[%emt 0:01:58]} Rd6 {[%emt 0:03:42]} 22. Bf1 {[%emt 0:04:00]} Rf8 {[%emt 0:01:13]} 23. axb5 {[%emt 0:00:19]} axb5 {[%emt 0:00:02]} 24. Ra1 {[%emt 0:00:13]} Ra8 {[%emt 0:07:24]} 25. Rxa8+ {[%emt 0:00:06]} Bxa8 {[%emt 0:00:02]} 26. Ra1 {[%emt 0:00:01]} Qd8 {[%emt 0:03:05]} 27. Qc3 {[%emt 0:01:50]} Ne6 {[%emt 0:01:26]} 28. Qa3 {[%emt 0:02:12]} Nb6 {[%emt 0:00:01]} 29. Nxe6 {[%emt 0:03:34]} Rxe6 {[%emt 0:00:01]} 30. Qc5 {[%emt 0:00:12]} Nd7 {[%emt 0:03:46]} 31. Qa7 {[%emt 0:01:08]} Re8 {[%emt 0:00:01]} 32. h5 {[%emt 0:00:23]} Qc8 {[%emt 0:00:51]} 33. h6 {[%emt 0:00:59]} Qb7 {[%emt 0:00:32]} 34. Ng5 {[%emt 0:01:45]} Nf6 {[%emt 0:01:39]} 35. f3 {[%emt 0:00:19]} Nd7 {[%emt 0:01:16]} 36. Qxb7 {[%emt 0:01:32]} Bxb7 {[%emt 0:00:01]} 37. Ra7 {[%emt 0:00:08]} Rb8 {[%emt 0:02:13]} 38. Kf2 {[%emt 0:00:36]} Nb6 {[%emt 0:00:44]} 39. Ke2 {[%emt 0:01:17]} Nc8 {[%emt 0:00:26]} 40. Ra3 {[%emt 0:00:17]} Nd6 {[%emt 0:00:18]} 41. Kd2 {[%emt 0:00:46]} Nf7 {[%emt 0:00:23]} 42. Nxf7 {[%emt 0:00:31]} Kxf7 {[%emt 0:00:01]} 43. Ra7 {[%emt 0:00:01]} Ke6 {[%emt 0:01:10]} 44. f4 {[%emt 0:00:48]} Kd6 {[%emt 0:00:12]} 45. Be2 {[%emt 0:00:31]} Kc7 {[%emt 0:00:32]} 46. g4 {[%emt 0:00:43]} Kb6 {[%emt 0:00:12]} 47. Ra1 {[%emt 0:00:01]} Bc8 {[%emt 0:01:21]} 48. Rg1 {[%emt 0:01:14]} Bd7 {[%emt 0:01:19]} 49. gxf5 {[%emt 0:00:28]} Bxf5 {[%emt 0:00:01]} 50. Bg4 {[%emt 0:00:20]} Rf8 {[%emt 0:00:24]} 51. Be2 {[%emt 0:00:21]} Kc7 {[%emt 0:00:40]} 52. Ra1 {[%emt 0:00:32]} Kb7 {[%emt 0:00:01]} 53. Rg1 {[%emt 0:00:16]} Kc7 {[%emt 0:00:51]} 54. Ra1 {[%emt 0:00:05]} Kb7 {[%emt 0:00:17]} 55. Rg1 {[%emt 0:01:15]} Kc7 {[%emt 0:01:03]} 56. Bf3 {[%emt 0:00:29]} Ra8 {[%emt 0:00:18]} 57. Kc3 {[%emt 0:00:23]} Re8 {[%emt 0:00:18]} 58. Kd2 {[%emt 0:00:24]} Ra8 {[%emt 0:00:04]} 59. Kc3 {[%emt 0:00:40]} Re8 {[%emt 0:00:02]} 60. Kd2 {[%emt 0:00:39]} Ra8 {[%emt 0:01:04]} 1/2-1/2

[Event "ESP-chT Honor Division 2022"]
[Site "Linares"]
[Date "2022.09.21"]
[Round "5.1"]
[White "Kryvoruchko, Yuriy"]
[Black "Shirov, Alexei"]
[Result "1/2-1/2"]
[ECO "C67"]
[WhiteElo "2669"]
[BlackElo "2673"]
[Annotator "TA"]
[PlyCount "80"]
[EventDate "2022.09.17"]
[EventType "team-tourn"]
[EventCountry "ESP"]
[SourceTitle "playchess.com"]
[Source "ChessBase"]
[SourceQuality "1"]
[TimeControl "5400+30"]

{[%evp 18,80,16,16,27,20,14,0,0,0,18,20,12,14,12,0,0,0,0,-4,2,0,31,31,37,37,35,17,22,22,22,17,16,6,19,0,0,0,0,0,0,0,0,0,27,0,0,0,0,0,17,0,8,0,0,0,0,-12,-10,-10,-10,-10,-18,-18,-19]} 1. e4 {[%emt 0:00:03]} e5 {[%emt 0:00:03]} 2. Nf3 {[%emt 0:00:11]} Nc6 {[%emt 0:00:03]} 3. Bb5 {[%emt 0:00:15]} Nf6 {[%emt 0:00:04]} 4. O-O {[%emt 0:02:30][%cal Bh1f1,Bf1e1,Be1e5][%mdl 32]} Nxe4 {[%emt 0:00:07]} 5. Re1 {[%emt 0:01:12]} Nd6 {[%emt 0:00:28]} 6. Nxe5 {[%emt 0:00:06]} Be7 {[%emt 0:00:08][%cal Bf8e7,Be7f6,Bf6d4,Bd4b6][%mdl 32]} 7. Bf1 {[%emt 0:00:04]} Nxe5 {[%emt 0:04:42]} 8. Rxe5 {[%emt 0:00:04]} O-O {[%emt 0:00:09]} 9. d4 {[%emt 0:00:08]} Bf6 {[%emt 0:00:40]} 10. Re1 {[%emt 0:00:05]} Nf5 {[%emt 0:03:16] C67: Ruy Lopez: Berlin Defence: 4 0-0 Nxe4.} 11. d5 {[%emt 0:00:17]} Re8 {[%emt 0:06:06]} 12. Nd2 {[%emt 0:02:40]} Rxe1 {[%emt 0:07:46]} 13. Qxe1 {[%emt 0:00:07]} d6 {[%emt 0:00:14]} (13... b6 $5 {[%cal Rc8b7]}) 14. Ne4 {[%emt 0:11:08]} Bd4 {[%emt 0:07:18]} 15. c3 {[%emt 0:03:56]} Bb6 {[%emt 0:00:12]} 16. Bf4 {[%emt 0:00:46] [#]} Ne7 $146 {[%emt 0:07:16]} ({Predecessor:} 16... Bd7 17. Bd3 Ne7 18. c4 Ng6 19. Bg5 Qf8 20. Qc3 f5 21. Nd2 Ne5 22. Bf4 Re8 {0-1 (39) Durarbayli,V (2616)-Baryshpolets,A (2538) Cleveland 2015}) 17. c4 {[%emt 0:09:12]} Ng6 {[%emt 0:00:31]} 18. Be3 {[%emt 0:10:46]} Bf5 {[%emt 0:02:19]} 19. Nc3 {[%emt 0:01:04]} Qe7 {[%emt 0:21:39]} 20. Bxb6 $1 {[%emt 0:00:25]} Qxe1 {[%emt 0:00:06]} ({Much less strong is} 20... cxb6 21. Nb5 $16) 21. Rxe1 {[%emt 0:00:04]} axb6 {[%emt 0:00:06]} 22. g3 {[%emt 0:06:48]} Ne5 {[%emt 0:09:11] [#] ...Nf3+ is the strong threat.} 23. Re3 {[%emt 0:01:08] Inhibits Nf3+.} g5 {[%emt 0:01:48]} 24. a3 {[%emt 0:02:53]} Kg7 {[%emt 0:03:43]} 25. Nb5 {[%emt 0:00:39]} Bd7 {[%emt 0:00:40]} 26. Nd4 {[%emt 0:06:09]} f5 {[%emt 0:02:13]} 27. f4 {[%emt 0:01:40]} gxf4 {[%emt 0:00:06]} 28. gxf4 {[%emt 0:00:03]} Ng6 {[%emt 0:00:05]} 29. Bd3 {[%emt 0:06:54]} Kf6 {[%emt 0:02:09]} 30. Ne2 {[%emt 0:00:05]} c6 {[%emt 0:00:35]} 31. dxc6 {[%emt 0:00:54]} bxc6 {[%emt 0:00:30] The position is equal.} 32. Kf2 {[%emt 0:00:03]} Be6 {[%emt 0:02:04]} 33. Rh3 {[%emt 0:02:09]} Ra7 {[%emt 0:00:46]} 34. Rh5 {[%emt 0:00:12]} c5 {[%emt 0:00:51]} 35. Rh3 {[%emt 0:00:31]} d5 {[%emt 0:00:41]} 36. cxd5 {[%emt 0:00:25]} Bxd5 {[%emt 0:00:04]} 37. Bxf5 {[%emt 0:01:48]} Kxf5 {[%emt 0:00:58]} 38. Rh5+ {[%emt 0:00:02]} Ke6 {[%emt 0:00:11] [#] Threatens to win with ...Rf7.} 39. f5+ {[%emt 0:00:03]} Kd6 {[%emt 0:00:07] And now ...Rf7 would win.} 40. fxg6 {[%emt 0:00:07]} hxg6 {[%emt 0:00:09] Weighted Error Value: White=0.05 (flawless) /Black=0.05 (flawless)} 1/2-1/2